[Event "35th Roquetas Festival 2024"]
[Site "Roquetas de Mar"]
[Date "2024.01.06"]
[Round "8.3"]
[White "Fiorito, Joaquin"]
[Black "Korneev, Oleg"]
[Result "1/2-1/2"]
[ECO "D00"]
[WhiteElo "2401"]
[BlackElo "2474"]
[Annotator "TA"]
[PlyCount "66"]
[EventDate "2024.01.02"]
[EventType "swiss"]
[EventCountry "ESP"]
[SourceTitle "playchess.com"]
[Source "ChessBase"]
[SourceQuality "1"]
[TimeControl "5400+30"]

{[%evp 9,66,-8,2,-4,6,0,0,6,4,-5,5,4,8,1,20,17,24,21,25,20,16,16,10,12,12,14,13,9,9,0,0,0,6,0,0,0,0,0,0,0,-9,-13,0,-31,-31,-45,-42,-48,-44,-114,-104,-166,-173,-164,-150,-193,-169,-231,-210]} 1. d4 d5 2. Nc3 Nf6 3. Bf4 e6 4. Nb5 Bb4+ {[%cal Bf8b4,Bb4a5,Ba5c7][%mdl 32]} 5. c3 Ba5 6. e3 {D00: 1 d4 d5: Unusual lines.} a6 7. Na3 {[%cal Bb5a3,Ba3b1,Bb1d2][%mdl 32]} c6 8. Bd3 {The position is equal.} Bc7 9. Nf3 Nbd7 10. Nb1 O-O 11. Nbd2 {[#]} Bxf4 $146 ({Predecessor:} 11... b6 12. Bg3 c5 13. Ne5 Bb7 14. Qb1 g6 15. f4 Nh5 16. Ndf3 f5 17. Bh4 Qe8 {½-½ Erigaisi,A (2725)-Gelfand,B (2668) Julius Baer GenCup Prelim rapid 2022 (11)}) 12. exf4 c5 13. O-O Qb6 14. Rb1 cxd4 15. Nxd4 e5 16. fxe5 Nxe5 17. N2f3 Bg4 18. Be2 Nc6 19. h3 Bxf3 20. Nxf3 Rfd8 21. Nd4 Nxd4 22. Qxd4 Qxd4 23. cxd4 Rac8 24. Rbc1 Kf8 25. Bd3 Ke7 26. Bf5 Rc6 27. Rfe1+ Kd6 $1 28. f3 Rc4 29. b3 (29. Rxc4 $15 dxc4 30. Re5) 29... Rxd4 $17 30. Rc8 (30. Rc2 $17) 30... Rxc8 $19 {Black is clearly better.} 31. Bxc8 Rb4 32. Re3 Rb6 33. Rc3 (33. Kf1 {was necessary.}) 33... Rc6 {Weighted Error Value: White=0.13 (very precise) /Black=0.03 (flawless)} 1/2-1/2

[Event "35th Roquetas Festival 2024"]
[Site "Roquetas de Mar"]
[Date "2024.01.06"]
[Round "8.4"]
[White "Macias Pino, Diego"]
[Black "Habans Aguerrea, Javier"]
[Result "1/2-1/2"]
[ECO "B12"]
[WhiteElo "2456"]
[BlackElo "2368"]
[Annotator "RC"]
[PlyCount "59"]
[EventDate "2024.01.02"]
[EventType "swiss"]
[EventCountry "ESP"]
[SourceTitle "playchess.com"]
[Source "ChessBase"]
[SourceQuality "1"]
[TimeControl "5400+30"]

1. e4 c6 2. d4 d5 3. e5 c5 4. Nf3 cxd4 5. Qxd4 Nc6 6. Qf4 g6 7. Nc3 d4 8. Bc4 Bf5 9. Ne2 Bh6 10. Qg3 Bxc2 11. O-O d3 12. Nc3 Rc8 13. Bd5 Kf8 14. Bxh6+ Nxh6 15. Qf4 Kg7 16. Ng5 Rf8 17. Bxf7 Nd4 18. Qh4 Rc5 19. Qxd4 Qxd4 20. Ne6+ Kxf7 21. Nxd4 Nf5 22. Nf3 h6 23. Rfe1 Rd8 24. Nd2 g5 25. Re4 Ke6 26. Rae1 Kf7 27. Kf1 Ke6 28. Kg1 Kf7 29. Kf1 Ke6 30. Kg1 1/2-1/2

[Event "35th Roquetas Festival 2024"]
[Site "Roquetas de Mar"]
[Date "2024.01.06"]
[Round "8.5"]
[White "Vergara Anton, Diego"]
[Black "Peng, Li Min"]
[Result "0-1"]
[ECO "A06"]
[WhiteElo "2346"]
[BlackElo "2575"]
[Annotator "TA"]
[PlyCount "94"]
[EventDate "2024.01.02"]
[EventType "swiss"]
[EventCountry "ESP"]
[SourceTitle "playchess.com"]
[Source "ChessBase"]
[SourceQuality "1"]
[TimeControl "5400+30"]

{[%evp 10,94,0,0,0,0,0,0,0,0,0,0,0,0,6,0,19,12,14,16,25,12,12,8,4,1,60,0,0,-38,-32,-32,-31,-37,-30,-31,-30,-30,-30,-111,-111,-117,-118,-121,-118,-129,-131,-178,-174,-165,-167,-158,-155,-248,-227,-316,-328,-347,-270,-366,-333,-362,-360,-358,-327,-391,-343,-710,-710,-674,-639,-29977,-29978,-29978,-29976,-12838,-2304,-12817,-676,-29986,-2312,-2162,-1785,-6729,-3455,-12840,-12840]} 1. Nf3 d5 2. e3 Nf6 3. c4 e6 4. b3 Bd6 5. Bb2 O-O 6. Be2 b6 {A13: English Opening: 1...e6.} 7. O-O Bb7 8. Nc3 a6 {The position is equal.} 9. Rc1 Qe7 10. d4 Nbd7 11. Nd2 c5 12. Bf3 {[#]} Ra7 $146 {[%cal Ba8a7,Ba7b7,Bb7c7][%mdl 32]} ({Predecessor:} 12... cxd4 13. exd4 Bb4 14. Ndb1 Ne4 15. cxd5 exd5 16. g3 f5 17. Ne2 Bd6 18. Bg2 f4 {0-1 Kolbus,D (2225)-Akobian,V (2582) FIDE Grand Swiss 2023 (4)}) 13. Re1 cxd4 14. exd4 {Black should prevent cxd5.} dxc4 15. Bxb7 Rxb7 16. Nxc4 b5 17. Ne3 {[%cal Oe3f5] Black must now prevent Nf5!} Nb6 (17... Rd8 $11) 18. Qf3 ({White should try} 18. d5 $1 $14) 18... Rc7 $11 19. Nf5 Qd7 20. Nxd6 Qxd6 21. Ne4 Nxe4 22. Rxc7 Qxc7 23. Qxe4 Rc8 {[%cal Bf8c8,Bc8c3,Bc3a3][%mdl 32]} 24. d5 {White is on the road to losing.} Nxd5 $17 25. Qg4 {[%csl Gb2][%cal Rg4g7] [#]} Nc3 ({Reject} 25... f5 $6 26. Qd4 $15) 26. h3 Qc5 (26... Nxa2 $2 27. Qxg7#) 27. a3 Qd5 28. Bxc3 ({Don't go for} 28. Rc1 $2 h5 29. Qg3 Ne2+ 30. Kh2 Nxg3 $19) (28. Qb4 $17 Qd2 29. Bxc3 Rxc3 30. Rf1) 28... Rxc3 {[%mdl 4096] Endgame KQR-KQR} 29. Rd1 {[#]} h5 $1 30. Qe2 Qf5 {Black is more active.} (30... Qxb3 $2 {leads to mate.} 31. Rd8+ Kh7 32. Qxh5#) 31. Rd8+ (31. Qb2 $17 Rc2 32. Qd4) 31... Kh7 $19 32. b4 Rxa3 33. Rd4 e5 34. Rh4 g6 35. Re4 Kg7 36. f3 Rc3 37. Qb2 Rc4 38. Re2 (38. Qe2 Qe6 39. Kf2) 38... Qf4 39. Rxe5 Rxb4 40. Qe2 Rb1+ 41. Kf2 Qd4+ 42. Qe3 Qxe3+ (42... Qh4+ $142 43. g3 Rb2+ 44. Qe2 Qxh3 45. Qxb2 Qh2+ {[%mdl 64] Skewer} 46. Ke3 Qxb2) 43. Kxe3 a5 (43... Re1+ $142 44. Kd4 Rxe5 45. Kxe5 h4) 44. Re8 a4 (44... Re1+ $142 45. Kd2 Rxe8 46. Kc3 a4 47. g4 a3 48. Kb3 Re3+ 49. Kc2 hxg4 50. fxg4 Rxh3 51. g5 Rg3 52. Kd2 a2 53. Ke2 a1=Q 54. Kf2 Qg1+ 55. Ke2 Qh2+ 56. Kf1 Rg1#) 45. Ra8 {Black is clearly winning.} Rb3+ 46. Kf4 a3 {...Rb4+ would be deadly.} 47. Ke4 Rb4+ {Weighted Error Value: White=0.68/Black=0.48} 0-1

[Event "35th Roquetas Festival 2024"]
[Site "Roquetas de Mar"]
[Date "2024.01.06"]
[Round "8.6"]
[White "Sosa, Tomas"]
[Black "Stremavicius, Pijus"]
[Result "1-0"]
[ECO "B10"]
[WhiteElo "2554"]
[BlackElo "2393"]
[Annotator "TA"]
[PlyCount "97"]
[EventDate "2024.01.02"]
[EventType "swiss"]
[EventCountry "ESP"]
[SourceTitle "playchess.com"]
[Source "ChessBase"]
[SourceQuality "1"]
[TimeControl "5400+30"]

{[%evp 9,97,0,12,12,20,8,12,0,8,-19,-12,-37,-25,-27,-17,-15,-13,-30,-16,-38,-36,-72,-70,-74,-72,-65,-34,-41,0,0,18,16,20,21,16,25,15,0,0,3,63,70,80,81,79,74,92,63,135,135,135,121,185,185,272,144,178,178,182,152,277,111,160,153,152,134,102,158,360,333,831,831,759,688,1095,931,2840,1801,29978,29979,29979,29980,29980,29981,12844,12844,29982,29983,29983,29985]} 1. e4 c6 2. Nf3 {[%cal Bg1f3,Bf3d2,Bd2c4][%mdl 32]} d5 3. d3 dxe4 4. dxe4 Qxd1+ 5. Kxd1 Nf6 6. Nfd2 {B10: Caro-Kann: 2 d3 and 2 c4.} h5 7. f3 g5 {[%cal Bg7g5,Bg5g4][%mdl 32]} 8. h4 $5 {[%mdl 4] The position is equal. A promising side line.} g4 9. Nc4 Be6 10. Bf4 (10. Na5 $5 {[%cal Ra5b7]}) 10... Nbd7 11. Nbd2 Bh6 {[#]} 12. Bxh6 $146 ({Predecessor:} 12. Bg5 O-O-O 13. Ke1 gxf3 14. gxf3 Rdg8 15. Bxh6 Rxh6 16. Kf2 Rhg6 17. a4 Kc7 18. a5 {1-0 Vasquez Schroder,R (2506)-Svane,R (2651) Titled Tuesday intern op 10th May Late blitz 2022 (6)}) 12... Rxh6 13. a4 O-O-O 14. Ke1 Ne8 15. f4 Bxc4 16. Bxc4 Nd6 17. Bd3 e5 18. f5 Nc5 19. b4 Nxd3+ 20. cxd3 Ne8 21. Ke2 Rhd6 22. Ra3 Rd4 23. Rb1 Nd6 24. Nf1 b6 ({Better is} 24... b5 $1 $11) 25. Ne3 $14 {Hoping for Nc2.} Nb7 26. Rc3 Kd7 27. Nc2 {Repels c5} Rd6 {[#]} 28. a5 $1 {aiming for a6.} Rh6 ({Black should try} 28... Rc8 $14) (28... Rf6 29. axb6) 29. axb6 $16 axb6 30. Ra1 Rc8 (30... Kc7 $16) 31. Ra6 $18 b5 {[#]} (31... c5 $142 32. b5 Rb8) 32. Na1 (32. d4 $1 $18 {[%cal Rd4e5]}) 32... Rhh8 33. Nb3 Rc7 {[#]} 34. Ke3 $1 {d4 would be deadly.} Rhc8 (34... Re8 $16 35. Rc1 f6) 35. Nc5+ (35. d4 $18 {and the rest is easy.}) 35... Nxc5 $16 36. Rxc5 {[%mdl 4096] Endgame KRR-KRR} f6 37. d4 {White is more active.} exd4+ 38. Kxd4 {Threatens to win with g3.} Re8 $2 {Black cannot hold the game after this.} (38... Ke8 $16 39. Ke3 Kf7) 39. g3 {And now e5 would win.} Re7 (39... Rd8 40. e5 Kc8+ 41. Ke4 Kb7) 40. e5 $18 fxe5+ 41. Rxe5 Rxe5 42. Kxe5 {KR-KR} c5 43. Rd6+ Ke7 44. Rh6 Kf8 45. Kd6 {[%mdl 64] Deflection, Double Attack} ({Weaker is} 45. Rxh5 cxb4 46. Rh8+ Kg7 $14) 45... Ra7 46. bxc5 ({And not} 46. Rxh5 cxb4 47. Rh8+ Kg7 $11) 46... Ra3 47. c6 {Intending c7 and mate.} Rd3+ 48. Ke6 Rc3 49. Kd7 {Weighted Error Value: White=0.15 (very precise) /Black=0.55} ({Not} 49. Rxh5 Rxc6+ 50. Kd5 Rc3 $18) 1-0

[Event "35th Roquetas Festival 2024"]
[Site "Roquetas de Mar"]
[Date "2024.01.06"]
[Round "8.9"]
[White "Espinosa Aranda, Angel"]
[Black "Bernal Moro, Luis Javier"]
[Result "1-0"]
[ECO "B40"]
[WhiteElo "2431"]
[BlackElo "2370"]
[Annotator "RC"]
[PlyCount "48"]
[EventDate "2024.01.02"]
[EventType "swiss"]
[EventCountry "ESP"]
[SourceTitle "playchess.com"]
[Source "ChessBase"]
[SourceQuality "1"]
[TimeControl "5400+30"]

1. e4 c5 2. Nf3 e6 3. c3 Nf6 4. e5 Nd5 5. d4 cxd4 6. cxd4 d6 7. Bc4 Be7 8. O-O O-O 9. Qe2 b6 10. Rd1 Qc7 11. Bxd5 exd5 12. Nc3 Be6 13. Bf4 dxe5 14. Nxe5 Qb7 15. Rac1 a6 16. Na4 Bd8 17. Rd3 Nd7 18. Rg3 Bf5 19. Nc3 Nf6 20. Rg5 Bg6 21. Nxg6 hxg6 22. Re5 Qd7 23. Re1 b5 24. Qf3 Bc7 1-0

[Event "35th Roquetas Festival 2024"]
[Site "Roquetas de Mar"]
[Date "2024.01.06"]
[Round "8.10"]
[White "Tejedor Fuente, Enrique"]
[Black "Raczek, Krzysztof"]
[Result "1/2-1/2"]
[ECO "A53"]
[WhiteElo "2395"]
[BlackElo "2347"]
[Annotator "RC"]
[PlyCount "41"]
[EventDate "2024.01.02"]
[EventType "swiss"]
[EventCountry "ESP"]
[SourceTitle "playchess.com"]
[Source "ChessBase"]
[SourceQuality "1"]
[TimeControl "5400+30"]

1. c4 d6 2. d4 e5 3. e3 Nf6 4. Nc3 Nbd7 5. Bd3 g6 6. Nge2 Bg7 7. O-O O-O 8. Rb1 Re8 9. b4 h5 10. h3 h4 11. f4 Nb6 12. Qb3 e4 13. Bc2 c6 14. d5 cxd5 15. cxd5 Bd7 16. Kh1 Kh8 17. Kh2 Kg8 18. Kh1 Kh8 19. Kh2 Kg8 20. Kh1 Kh8 21. Kh2 1/2-1/2

[Event "35th Roquetas Festival 2024"]
[Site "Roquetas de Mar"]
[Date "2024.01.06"]
[Round "8.12"]
[White "Camacho Collados, Jose"]
[Black "Alshameary Puente, Ismael"]
[Result "1-0"]
[ECO "A06"]
[WhiteElo "2381"]
[BlackElo "2317"]
[Annotator "RC"]
[PlyCount "70"]
[EventDate "2024.01.02"]
[EventType "swiss"]
[EventCountry "ESP"]
[SourceTitle "playchess.com"]
[Source "ChessBase"]
[SourceQuality "1"]
[TimeControl "5400+30"]

1. Nf3 d5 2. g3 g6 3. d4 Bg7 4. c4 dxc4 5. Bg2 c6 6. Na3 b5 7. Nxb5 cxb5 8. Ne5 f6 9. Nxc4 Bd7 10. Bxa8 Nc6 11. Nd6+ exd6 12. Bxc6 Bxc6 13. d5 Bb7 14. Qb3 a6 15. a4 Ne7 16. e4 f5 17. axb5 fxe4 18. bxa6 Bxd5 19. Qd1 O-O 20. O-O Ba8 21. Be3 Nf5 22. Ra3 d5 23. Bc5 Re8 24. b4 d4 25. b5 e3 26. fxe3 Rxe3 27. b6 Rxa3 28. Bxa3 Qxb6 29. Qb1 Qa7 30. Qd3 Bh6 31. Rb1 Be3+ 32. Kf1 Bd5 33. Rb7 Bxb7 34. Qb3+ Bd5 35. Qxd5+ Kh8 1-0

[Event "35th Roquetas Festival 2024"]
[Site "Roquetas de Mar"]
[Date "2024.01.06"]
[Round "8.13"]
[White "Fiorito, Francisco"]
[Black "Revaliente Montoya, Ciro"]
[Result "1-0"]
[ECO "A00"]
[WhiteElo "2370"]
[BlackElo "2263"]
[Annotator "RC"]
[PlyCount "65"]
[EventDate "2024.01.02"]
[EventType "swiss"]
[EventCountry "ESP"]
[SourceTitle "playchess.com"]
[Source "ChessBase"]
[SourceQuality "1"]
[TimeControl "5400+30"]

1. g3 Nf6 2. Bg2 g6 3. b3 d5 4. Nf3 Bg7 5. Bb2 c5 6. O-O O-O 7. c4 d4 8. b4 Nfd7 9. bxc5 Nxc5 10. d3 e5 11. Ba3 Nba6 12. Nbd2 Bd7 13. Nb3 Rc8 14. Nfd2 b6 15. Ne4 Qc7 16. e3 Nxe4 17. Bxe4 Rfd8 18. exd4 exd4 19. Qf3 Bc6 20. Rfe1 Nb8 21. h4 Bxe4 22. Rxe4 Nc6 23. Rae1 Qd7 24. Qe2 a5 25. Nd2 b5 26. cxb5 Ne5 27. Rxe5 Bxe5 28. Qxe5 Re8 29. Be7 f6 30. Qxf6 Rc7 31. b6 Rxe7 32. Rxe7 Qxe7 33. bxc7 1-0

[Event "35th Roquetas Festival 2024"]
[Site "Roquetas de Mar"]
[Date "2024.01.06"]
[Round "8.14"]
[White "Garcia Fernandez, Victor"]
[Black "Serrano Almendros, Angel"]
[Result "0-1"]
[ECO "A40"]
[WhiteElo "2366"]
[BlackElo "2250"]
[Annotator "RC"]
[PlyCount "114"]
[EventDate "2024.01.02"]
[EventType "swiss"]
[EventCountry "ESP"]
[SourceTitle "playchess.com"]
[Source "ChessBase"]
[SourceQuality "1"]
[TimeControl "5400+30"]

1. d4 e6 2. c4 b6 3. e4 Bb4+ 4. Nc3 Bb7 5. Bd3 f5 6. Nge2 fxe4 7. Bc2 Nf6 8. O-O Bxc3 9. Nxc3 O-O 10. Bg5 Qe8 11. Qe2 d5 12. f3 Nc6 13. Rad1 Nb4 14. fxe4 Nxc2 15. Bxf6 Rxf6 16. Qxc2 Rxf1+ 17. Rxf1 dxc4 18. Qf2 a6 19. a4 Rd8 20. Kh1 h6 21. Qg3 Qd7 22. Qe5 Rf8 23. Rxf8+ Kxf8 24. a5 bxa5 25. Qxa5 Qd6 26. h3 Qb6 27. Qa3+ Kf7 28. d5 exd5 29. exd5 Qd6 30. Kg1 Qxa3 31. bxa3 Kf6 32. Kf2 Ke5 33. Ke3 g5 34. g3 Bxd5 35. Nd1 Be6 36. h4 gxh4 37. gxh4 Kf5 38. Nf2 h5 39. Kf3 Bd5+ 40. Ke3 Bf7 41. Kf3 c3 42. Nd1 Bd5+ 43. Kg3 c2 44. Ne3+ Ke4 45. Nxc2 c5 46. Kf2 Kd3 47. Ne3 Be6 48. Ng2 Bf7 49. Ne1+ Kc3 50. Ke3 c4 51. Nf3 Kb2 52. Ne5 c3 53. Ke2 c2 54. Nd3+ Kb1 55. Kd2 Bc4 56. Nc1 a5 57. a4 Kb2 0-1

[Event "35th Roquetas Festival 2024"]
[Site "Roquetas de Mar"]
[Date "2024.01.06"]
[Round "8.15"]
[White "Macak, Stefan"]
[Black "Alba Fernandez, Nicolas"]
[Result "1/2-1/2"]
[ECO "B48"]
[WhiteElo "2354"]
[BlackElo "2123"]
[Annotator "RC"]
[PlyCount "63"]
[EventDate "2024.01.02"]
[EventType "swiss"]
[EventCountry "ESP"]
[SourceTitle "playchess.com"]
[Source "ChessBase"]
[SourceQuality "1"]
[TimeControl "5400+30"]

1. e4 c5 2. Nc3 Nc6 3. Nf3 e6 4. d4 cxd4 5. Nxd4 Qc7 6. Be3 a6 7. Qd2 Nf6 8. f4 Bb4 9. Bd3 Na5 10. a3 Bxc3 11. Qxc3 Qxc3+ 12. bxc3 d5 13. e5 Ne4 14. Nb3 Nc4 15. Bxc4 dxc4 16. Na5 Bd7 17. Rb1 b5 18. Bd4 f5 19. exf6 gxf6 20. Ke2 Rg8 21. Rbg1 h5 22. Kf3 f5 23. g3 Nd6 24. Ke3 O-O-O 25. Bf6 Rde8 26. Rd1 Ne4 27. Be5 Re7 28. Rb1 Kd8 29. Nb7+ Kc8 30. Nd6+ Nxd6 31. Bxd6 Rh7 32. Kd4 1/2-1/2

[Event "35th Roquetas Festival 2024"]
[Site "Roquetas de Mar"]
[Date "2024.01.06"]
[Round "8.16"]
[White "Perea Fruet, Lorenzo"]
[Black "Diaz Mino, Daniel"]
[Result "1-0"]
[ECO "A57"]
[WhiteElo "2323"]
[BlackElo "2074"]
[Annotator "RC"]
[PlyCount "87"]
[EventDate "2024.01.02"]
[EventType "swiss"]
[EventCountry "ESP"]
[SourceTitle "playchess.com"]
[Source "ChessBase"]
[SourceQuality "1"]
[TimeControl "5400+30"]

1. d4 Nf6 2. c4 c5 3. d5 b5 4. cxb5 a6 5. e3 axb5 6. Bxb5 Qa5+ 7. Nc3 Ba6 8. Bxa6 Qxa6 9. a4 d6 10. Nf3 g6 11. e4 Bg7 12. Qc2 O-O 13. Nb5 Qb7 14. O-O Na6 15. Nd2 Nb4 16. Qb1 Rfb8 17. Nc4 Rxa4 18. Rxa4 Qxb5 19. b3 Nbxd5 20. Ra5 Qxc4 21. bxc4 Rxb1 22. Ra8+ Bf8 23. Bh6 Rxf1+ 24. Kxf1 Nd7 25. exd5 f6 26. Rd8 Kf7 27. Rxd7 Bxh6 28. Ke2 f5 29. Kd3 Bf4 30. g3 Be5 31. Ra7 Bd4 32. Ra2 Kg7 33. Re2 Kf7 34. Kc2 Be5 35. Kb3 Kf6 36. f4 Bd4 37. Ka4 Kf7 38. Kb5 Bf6 39. Kc6 g5 40. Kd7 gxf4 41. gxf4 h6 42. Re6 h5 43. Re3 h4 44. h3 1-0

[Event "35th Roquetas Festival 2024"]
[Site "Roquetas de Mar"]
[Date "2024.01.06"]
[Round "8.17"]
[White "Shamatava, Nikolozi"]
[Black "Bru Rullo, Llatzer"]
[Result "1/2-1/2"]
[ECO "D25"]
[WhiteElo "2088"]
[BlackElo "2278"]
[Annotator "RC"]
[PlyCount "69"]
[EventDate "2024.01.02"]
[EventType "swiss"]
[EventCountry "ESP"]
[SourceTitle "playchess.com"]
[Source "ChessBase"]
[SourceQuality "1"]
[TimeControl "5400+30"]

1. d4 d5 2. c4 dxc4 3. Nf3 Nf6 4. e3 c5 5. Bxc4 cxd4 6. exd4 e6 7. O-O Be7 8. Nc3 O-O 9. a3 Nc6 10. Ba2 b6 11. Bg5 Bb7 12. Rc1 h6 13. Bh4 Nh5 14. Bxe7 Nxe7 15. Bb1 Nf4 16. Qd2 Neg6 17. Be4 Bxe4 18. Nxe4 Qd5 19. Qe3 Qb5 20. Rc2 Rac8 21. Nc3 Qf5 22. Rd2 Rfd8 23. g3 Nd5 24. Nxd5 Qxd5 25. Rfd1 Qb5 26. Qe2 Qh5 27. Qe4 Qb5 28. Qe2 Qxe2 29. Rxe2 Ne7 30. Kg2 Rd5 31. Red2 Rcd8 32. Rc2 Nf5 33. Rc7 R8d7 34. Rc2 f6 35. h4 1/2-1/2

[Event "35th Roquetas Festival 2024"]
[Site "Roquetas de Mar"]
[Date "2024.01.06"]
[Round "8.19"]
[White "Torres Rebolledo, Victor"]
[Black "Del Prado Rodriguez, Xulio"]
[Result "0-1"]
[ECO "E46"]
[WhiteElo "2124"]
[BlackElo "2294"]
[Annotator "RC"]
[PlyCount "86"]
[EventDate "2024.01.02"]
[EventType "swiss"]
[EventCountry "ESP"]
[SourceTitle "playchess.com"]
[Source "ChessBase"]
[SourceQuality "1"]
[TimeControl "5400+30"]

1. d4 Nf6 2. c4 e6 3. Nc3 Bb4 4. e3 O-O 5. Bd2 d5 6. Nf3 b6 7. cxd5 exd5 8. Rc1 Re8 9. Bd3 a6 10. Ne5 Bb7 11. O-O c5 12. a3 cxd4 13. exd4 Bd6 14. f4 Nbd7 15. Qf3 Nf8 16. Be1 Ne4 17. Nxe4 dxe4 18. Bxe4 Bxe5 19. Bxb7 Bxd4+ 20. Kh1 Ra7 21. Rc8 Qd7 22. Rxe8 Qxe8 23. b4 Qe7 24. Bd5 Rd7 25. a4 h6 26. Bc4 Ra7 27. Qd3 Qd7 28. f5 Be5 29. Qe4 Qd4 30. Qe2 Qd6 31. h3 a5 32. bxa5 bxa5 33. Qd3 Qf6 34. Qe4 Bb8 35. Bd2 Rd7 36. Qe2 Rd4 37. Rb1 Qd6 38. Rxb8 Rxd2 39. Bxf7+ Kxf7 40. Qc4+ Qd5 41. Rb7+ Kg8 42. Qxd5+ Rxd5 43. g4 Rd4 0-1

[Event "35th Roquetas Festival 2024"]
[Site "Roquetas de Mar"]
[Date "2024.01.06"]
[Round "8.20"]
[White "Bravo De La Vega, Alvaro"]
[Black "Iglesias Ferreira, Andres"]
[Result "0-1"]
[ECO "E04"]
[WhiteElo "2121"]
[BlackElo "2278"]
[Annotator "RC"]
[PlyCount "62"]
[EventDate "2024.01.02"]
[EventType "swiss"]
[EventCountry "ESP"]
[SourceTitle "playchess.com"]
[Source "ChessBase"]
[SourceQuality "1"]
[TimeControl "5400+30"]

1. d4 Nf6 2. c4 e6 3. Nf3 d5 4. g3 dxc4 5. Bg2 Bb4+ 6. Bd2 a5 7. Qc2 Bxd2+ 8. Nbxd2 b5 9. a4 c6 10. O-O O-O 11. e4 Na6 12. e5 Nb4 13. Qb1 Nfd5 14. Ne4 h6 15. Nd6 c3 16. Ra3 c2 17. Qa1 bxa4 18. Rc1 Qb6 19. Nc4 Qc7 20. Rxa4 c5 21. b3 cxd4 22. Nxd4 Bd7 23. Rxa5 Rxa5 24. Qxa5 Qxa5 25. Nxa5 Nc3 26. Ra1 Bb5 27. Nb7 Ne2+ 28. Nxe2 Bxe2 29. Be4 Bd3 30. Nc5 Bxe4 31. Nxe4 Nd3 0-1

[Event "35th Roquetas Festival 2024"]
[Site "Roquetas de Mar"]
[Date "2024.01.06"]
[Round "8.21"]
[White "Gomez Arce, Alejandro"]
[Black "Fiorito, Fabian"]
[Result "1-0"]
[ECO "B75"]
[WhiteElo "2074"]
[BlackElo "2274"]
[Annotator "ChessBase"]
[PlyCount "83"]
[EventDate "2024.01.02"]
[EventType "swiss"]
[EventCountry "ESP"]
[SourceTitle "playchess.com"]
[Source "ChessBase"]
[SourceQuality "1"]
[TimeControl "5400+30"]

1. e4 c5 2. Nf3 d6 3. d4 cxd4 4. Nxd4 Nf6 5. Nc3 g6 6. Be3 Bg7 7. f3 a6 8. Qd2 h5 9. Bc4 Nbd7 10. O-O-O Qc7 11. Bb3 Nc5 12. Bg5 Nxb3+ 13. cxb3 b5 14. Kb1 Bb7 15. Rhe1 Rc8 16. Nd5 Bxd5 17. exd5 O-O 18. Nc6 e6 19. Rc1 Qb7 20. Bxf6 Bxf6 21. Qf4 Kg7 22. Qxd6 exd5 23. Nb4 Rxc1+ 24. Rxc1 Rd8 25. Qxa6 Qe7 26. Qxb5 Qe5 27. Nd3 Qxh2 28. Ne1 h4 29. Qf1 Qe5 30. Nd3 Qd4 31. Rc2 Re8 32. Nf2 Qf4 33. a4 Qb4 34. Qd3 Re1+ 35. Ka2 Rg1 36. Nh3 Re1 37. Qd2 Qe7 38. Qxd5 Qa7 39. Qd2 Re5 40. Nf2 Be7 41. Ng4 Rc5 42. Rxc5 1-0

[Event "35th Roquetas Festival 2024"]
[Site "Roquetas de Mar"]
[Date "2024.01.06"]
[Round "8.23"]
[White "Korneev Leskova, Svyatoslav"]
[Black "Lazaro Azcutia, Miguel"]
[Result "1/2-1/2"]
[ECO "A13"]
[WhiteElo "2248"]
[BlackElo "2044"]
[Annotator "ChessBase"]
[PlyCount "174"]
[EventDate "2024.01.02"]
[EventType "swiss"]
[EventCountry "ESP"]
[SourceTitle "playchess.com"]
[Source "ChessBase"]
[SourceQuality "1"]
[TimeControl "5400+30"]

1. c4 e6 2. Nf3 d5 3. b3 Nf6 4. g3 Be7 5. Bg2 O-O 6. O-O a5 7. Nc3 c6 8. d4 Nbd7 9. Qc2 b6 10. Rd1 Ba6 11. Nd2 b5 12. e4 bxc4 13. bxc4 dxc4 14. Na4 c5 15. dxc5 Nxc5 16. Nxc4 Qc7 17. Nxc5 Qxc5 18. Ba3 Qxc4 19. Qxc4 Bxc4 20. Bxe7 Rfe8 21. Bxf6 gxf6 22. e5 Ra6 23. exf6 e5 24. Bd5 Bxd5 25. Rxd5 Rxf6 26. Rxa5 Rb8 27. a4 Rb2 28. Rb5 Re2 29. Rf1 Ra2 30. Rxe5 Rxa4 31. h4 Ra2 32. Kg2 h6 33. g4 Ra3 34. f3 Kg7 35. Kg3 Rb3 36. Ra5 Rc3 37. g5 hxg5 38. hxg5 Rd6 39. Kg4 f6 40. Ra7+ Kg6 41. gxf6 Rxf6 42. Ra4 Rfc6 43. f4 R3c4 44. Ra5 R6c5 45. Ra6+ Rc6 46. Rfa1 Kf6 47. R1a5 R4c5 48. Ra3 Rc3 49. Rxc6+ Rxc6 50. Rh3 Rc4 51. Rh6+ Kg7 52. Ra6 Rc5 53. Ra7+ Kg6 54. Ra8 Rb5 55. Rf8 Ra5 56. Rg8+ Kf7 57. Rh8 Ra6 58. Rh5 Rc6 59. Ra5 Rb6 60. Rh5 Kg6 61. Rf5 Ra6 62. Rf8 Rb6 63. Ra8 Rc6 64. Rh8 Ra6 65. Rh1 Rb6 66. f5+ Kg7 67. Kg5 Rb2 68. Re1 Rg2+ 69. Kf4 Rf2+ 70. Ke5 Kf7 71. Re3 Rf1 72. Re2 Ra1 73. Rg2 Re1+ 74. Kf4 Rf1+ 75. Kg5 Ra1 76. Rf2 Rg1+ 77. Kf4 Re1 78. Rf3 Rg1 79. Re3 Rf1+ 80. Ke5 Ra1 81. Re4 Rd1 82. Rg4 Re1+ 83. Kf4 Rf1+ 84. Kg5 Rh1 85. f6 Kf8 86. Ra4 Rg1+ 87. Kf5 Rf1+ 1/2-1/2

[Event "35th Roquetas Festival 2024"]
[Site "Roquetas de Mar"]
[Date "2024.01.06"]
[Round "8.24"]
[White "Vingris, Mikelis"]
[Black "Roquero Redondo, Miguel"]
[Result "1-0"]
[ECO "B54"]
[WhiteElo "2248"]
[BlackElo "1988"]
[Annotator "RC"]
[PlyCount "51"]
[EventDate "2024.01.02"]
[EventType "swiss"]
[EventCountry "ESP"]
[SourceTitle "playchess.com"]
[Source "ChessBase"]
[SourceQuality "1"]
[TimeControl "5400+30"]

1. e4 c5 2. Nf3 d6 3. d4 cxd4 4. Nxd4 Nf6 5. Bd3 e5 6. Ne2 Nc6 7. c4 Be7 8. Nbc3 O-O 9. O-O Nd7 10. Nd5 Bg5 11. b4 Bxc1 12. Rxc1 b6 13. Qb3 Re8 14. Qb2 Rb8 15. Qd2 Nf8 16. c5 bxc5 17. bxc5 Ne6 18. cxd6 Qxd6 19. Bb5 Ned8 20. Qd3 Kf8 21. Qc4 Bd7 22. Qa4 Rb7 23. Rfd1 Qb8 24. Bxc6 Nxc6 25. Rxc6 Re6 26. Qa3+ 1-0